bitfinex-derivatives/quotes_BNBF0:USTF0_20250413
["timestamp","ask_amount","ask_price","bid_price","bid_amount"]
[1744569527192,0.29647678,587.59,586.78,3.161]
[1744569527493,0.30722518,587.58,586.78,3.161]
[1744569527692,0.30721395,587.57,586.78,3.161]
[1744569527887,0.30721395,587.58,586.78,3.161]
[1744569528092,0.30721395,587.57,586.78,3.161]
[1744569528289,0.30721395,587.56,586.78,3.161]
[1744569528493,0.30721395,587.58,586.78,3.161]
[1744569528790,0.30721395,587.57,586.78,3.161]
[1744569528994,0.30721395,587.58,586.78,3.161]
[1744569529190,0.239,587.61,586.78,3.161]
[1744569529191,0.30721253,587.57,586.78,3.161]
[1744569529390,0.30721253,587.6,586.78,3.161]
[1744569529592,0.30721253,587.59,586.78,3.161]
[1744569529793,0.30721253,587.58,586.78,3.161]
[1744569529993,0.30721253,587.6,586.78,3.161]
[1744569530187,0.29647678,587.58,586.78,3.161]
[1744569530392,0.30721253,587.57,586.78,3.161]
[1744569530690,0.29647678,587.58,586.78,3.161]
[1744569530889,0.30720012,587.57,586.78,3.161]
[1744569531694,0.29647678,587.58,586.78,3.161]
[1744569531895,0.239,587.61,586.78,3.161]
[1744569541202,0.239,587.61,586.78,2.561]
[1744569542503,0.34032126,587.68,586.78,2.561]
[1744569542702,0.34032126,587.68,586.79,0.31297546]
[1744569543002,0.34032126,587.68,586.52,0.2962635]
[1744569543204,0.34032126,587.68,586.53,0.65394794]
[1744569543405,0.34032126,587.68,586.54,0.65394213]
[1744569543704,1.28863208,588.9,586.55,0.65393631]
[1744569543904,0.33967968,588.79,586.57,0.34096527]
[1744569544100,0.29640608,587.9,586.58,0.31295942]
[1744569544299,0.30738467,587.89,586.59,0.34095364]
[1744569544505,0.30738467,587.89,586.6,0.31295942]
[1744569544704,0.30738467,588.78,586.61,0.34094202]
[1744569545006,0.33974315,588.68,586.62,0.31295942]
[1744569545206,0.30738467,588.67,586.63,0.34093039]
[1744569545506,1.28863208,588.55,586.64,0.31295942]
[1744569545706,0.33982974,588.53,586.65,0.34091877]
[1744569546002,0.238,588.52,586.65,0.90791877]
[1744569546301,0.33984706,588.5,586.66,0.3129217]
[1744569546508,0.30745419,588.49,586.67,0.34090715]
[1744569546708,0.30745419,588.48,586.68,0.3129217]
[1744569546909,0.30745419,588.47,586.68,0.3129217]
[1744569547209,0.30745419,588.46,586.68,0.3129217]
[1744569547408,0.29628621,588.46,586.68,0.3129217]
[1744569547607,0.30747489,588.45,586.69,0.31288885]
[1744569547804,0.30747489,588.45,586.68,0.31288885]
[1744569549911,0.30747489,588.45,586.69,0.34089553]
[1744569550109,0.33988749,588.43,586.7,0.31288885]
[1744569550410,0.30747489,588.42,586.7,0.31288885]
[1744569550911,0.30747489,588.41,586.72,0.3408781]
[1744569551111,0.3399106,588.39,586.73,0.31288885]
[1744569551407,0.30747489,588.38,586.74,0.34086648]
[1744569551612,0.33992793,588.36,586.75,0.31288885]
[1744569551812,0.30747489,588.35,586.76,0.34085486]
[1744569552007,0.30747489,588.35,586.77,0.31288885]
[1744569552209,0.33994526,588.33,586.78,0.34084324]
[1744569552408,0.30747489,588.32,586.79,0.31288885]
[1744569553212,0.3399626,588.3,586.8,0.34083162]
[1744569553412,0.30747489,588.29,586.81,0.31288885]
[1744569553715,0.33997994,588.27,586.82,0.34082001]
[1744569553914,0.30740056,588.26,586.83,0.31285912]
[1744569554109,0.3399915,588.25,586.83,0.31285912]
[1744569554312,0.30740056,588.24,586.83,0.31285912]
[1744569554611,0.34000306,588.23,586.83,0.31285912]
[1744569554815,0.30740056,588.22,586.83,0.31285912]
[1744569555019,0.34001462,588.21,586.83,0.31285912]
[1744569555223,0.30740056,588.2,586.83,0.31285912]
[1744569555416,0.34002618,588.19,586.83,0.31285912]
[1744569555618,0.30740056,588.18,586.83,0.31285912]
[1744569556920,0.34003774,588.17,586.83,0.31285912]
[1744569557121,0.30740056,588.16,586.83,0.31285912]
[1744569557317,0.3400493,588.15,586.83,0.31285912]
[1744569557620,0.30740056,588.14,586.83,0.65367332]
[1744569557826,0.30740056,588.14,586.84,0.31285912]
[1744569558026,0.34006087,588.13,586.84,0.31285912]
[1744569558318,0.30740056,588.12,586.84,0.31285912]
[1744569558620,0.34007243,588.11,586.84,0.31285912]
[1744569558822,0.30740056,588.1,586.84,0.31285912]
[1744569559019,0.340084,588.09,586.84,0.31285912]
[1744569559322,0.30740056,588.08,586.84,0.31285912]
[1744569559521,0.34009556,588.07,586.84,0.31285912]
[1744569559727,0.30740056,588.06,586.84,0.31285912]
[1744569560126,0.60368589,588.05,586.85,0.31285666]
[1744569560426,0.30737319,588.04,586.86,0.31285666]
[1744569560627,0.30737319,588.04,586.84,0.31285666]
[1744569561625,0.2963127,588.05,586.83,0.3408142]
[1744569561826,0.30736889,588.04,586.85,0.418]
[1744569562027,0.30736889,588.04,586.86,0.31286485]
[1744569562223,0.238,588.03,586.86,0.31286485]
[1744569562631,0.30736889,588.02,586.86,0.31286485]
[1744569563229,0.29631017,588.01,586.87,0.445]
[1744569563524,0.30736889,588.0,586.88,0.31286485]
[1744569565125,0.238,588.03,586.87,0.445]
[1744569565331,0.238,588.03,586.88,0.31285363]
[1744569565925,0.238,588.03,586.87,0.445]
[1744569566231,0.2962345,588.02,586.88,0.34078516]
[1744569568031,0.238,588.03,586.88,0.34078516]
[1744569568832,0.238,588.03,586.89,0.563]
[1744569569333,0.29620298,588.02,586.89,0.563]
[1744569570729,0.29620298,588.02,586.9,0.34077355]
[1744569570934,0.238,588.03,586.9,0.34077355]
[1744569571736,0.238,588.03,586.91,0.31284119]
[1744569574438,0.238,588.03,586.9,0.34077355]
[1744569577134,0.238,588.03,586.91,0.31280138]
[1744569577338,0.238,588.03,586.92,0.34076194]
[1744569577535,0.238,588.03,586.93,0.31280138]
[1744569577733,0.238,588.03,586.94,0.34075033]
[1744569577936,0.238,588.03,586.95,0.31280138]
[1744569578136,0.238,588.03,586.95,0.96380138]
[1744569578439,0.238,588.03,586.96,0.6535401]
[1744569578640,0.238,588.03,586.97,0.65353429]
[1744569578838,0.238,588.03,586.98,0.34072711]
[1744569579037,0.238,588.03,586.99,0.31280138]
[1744569583241,0.238,588.03,587.0,0.3407155]
[1744569583436,0.238,588.03,587.01,0.31280138]
[1744569583639,0.238,588.03,587.02,0.31278828]
[1744569583840,0.238,588.03,587.01,0.31278828]
[1744569584041,0.238,588.03,587.02,0.31278828]
[1744569584239,0.238,588.03,587.01,0.31278828]
[1744569584439,0.238,588.03,587.02,0.31278828]
[1744569584637,0.238,588.03,587.03,0.31278828]
[1744569584842,0.238,588.03,587.01,0.31278828]
[1744569585040,0.238,588.03,587.02,0.31278828]
[1744569585240,0.34009556,588.07,587.01,0.31278828]
[1744569585544,0.30733185,588.06,587.02,0.31278828]
[1744569585745,0.30733185,588.06,587.03,0.31278828]
[1744569585941,0.30733185,588.06,587.01,0.31278828]
[1744569586147,0.30733185,588.06,587.02,0.31278828]
[1744569586341,0.30733185,588.06,587.01,0.31278828]
[1744569586548,0.34009556,588.07,587.0,0.3407155]
[1744569588248,0.57809556,588.07,587.0,0.3407155]
[1744569590250,0.87424813,588.07,587.0,0.3407155]
[1744569591955,0.57809556,588.07,587.0,0.3407155]
[1744569592854,0.57809556,588.07,587.01,0.392]
[1744569593155,0.87424687,588.07,587.01,0.392]
[1744569594854,0.87424687,588.07,587.02,0.475]
[1744569595055,0.57809556,588.07,587.02,0.475]
[1744569596258,0.87423931,588.07,587.02,0.475]
[1744569597558,0.30723995,588.06,587.02,0.475]
[1744569597959,0.57809556,588.07,587.02,0.475]
[1744569598153,0.30723305,588.06,587.02,0.475]
[1744569599357,0.29627485,588.05,587.02,0.475]
[1744569599561,0.30723305,588.04,587.02,0.475]
[1744569600355,0.30723305,588.04,587.02,1.035]
[1744569600961,0.30723305,588.04,587.02,1.753]
[1744569601161,0.30723305,588.06,587.02,1.753]
[1744569602162,0.29628873,588.05,587.02,1.753]
[1744569602357,0.30723305,588.04,587.02,1.753]
[1744569604762,0.30723305,588.04,587.03,0.31286446]
[1744569605864,0.30723305,588.04,587.02,1.753]
[1744569606565,0.30723305,588.04,587.02,2.361]
[1744569607164,0.3401187,588.03,587.02,2.361]
[1744569607367,0.30723305,588.02,587.02,2.361]
[1744569607558,0.34013026,588.01,587.02,2.361]
[1744569607758,0.30723305,588.0,587.02,2.361]
[1744569608265,0.2963291,587.99,587.02,2.361]
[1744569608464,0.30723305,587.98,587.02,2.361]
[1744569609760,0.3401534,587.97,587.02,2.361]
[1744569609963,0.30723305,587.96,587.02,2.361]
[1744569610263,0.34016498,587.95,587.02,2.361]
[1744569610562,0.30723305,587.94,587.02,2.361]
[1744569610759,0.34017655,587.93,587.02,2.361]
[1744569610965,0.30723305,587.92,587.02,2.361]
[1744569611165,0.34018812,587.91,587.02,2.361]
[1744569611362,0.30723305,587.9,587.02,2.361]
[1744569611572,0.34019969,587.89,587.02,2.361]
[1744569611971,0.3072037,587.88,587.02,2.361]
[1744569612172,0.34021127,587.87,587.02,2.361]
[1744569612470,0.3072037,587.86,587.02,2.361]
[1744569614172,0.29636443,587.85,587.02,2.361]
[1744569614373,0.3072037,587.84,587.02,2.361]
[1744569616372,0.3072037,587.86,587.02,2.361]
[1744569616676,0.30722474,587.85,587.02,2.361]
[1744569616974,0.30722474,587.86,587.02,2.361]
[1744569617174,0.29634928,587.84,587.02,2.951]
[1744569617476,0.30722474,587.83,587.02,2.951]
[1744569619275,0.30722474,587.82,587.02,2.951]
[1744569619475,0.239,587.83,587.02,2.951]
[1744569619672,0.30720371,587.82,587.02,2.951]
[1744569621178,0.53534928,587.83,587.02,2.951]
[1744569621473,0.30721374,587.82,587.02,2.951]
[1744569624381,0.30720979,587.81,587.02,2.951]
[1744569624577,0.30720979,587.82,587.02,2.951]
[1744569624882,0.30720979,587.81,587.02,2.951]
[1744569625081,0.30720979,587.82,587.02,2.951]
[1744569625381,0.30720979,587.81,587.02,2.951]
[1744569625581,0.30720979,587.82,587.02,2.951]
[1744569629090,0.30712437,587.81,587.02,2.951]
[1744569629284,0.29639472,587.81,587.02,2.951]
[1744569629485,0.30712437,587.8,587.02,2.951]
[1744569630190,0.34025757,587.79,587.02,2.951]
[1744569630390,0.30712437,587.78,587.02,2.951]
[1744569630593,0.34026915,587.77,587.02,2.951]
[1744569630790,0.30712551,587.76,587.02,2.951]
[1744569631488,0.34028073,587.75,587.02,2.951]
[1744569631687,0.30712551,587.74,587.02,2.951]
[1744569632287,0.29640986,587.73,587.02,2.951]
[1744569632493,0.30712551,587.72,587.02,2.951]
[1744569633696,0.29640986,587.73,587.02,2.951]
[1744569633894,0.30706876,587.72,587.02,2.951]
[1744569634096,0.64737265,587.71,587.02,2.951]
[1744569634298,0.64737844,587.7,587.02,2.951]
[1744569634596,0.64738423,587.69,587.02,2.951]
[1744569634796,0.64739002,587.68,587.02,2.951]
[1744569634996,0.30706876,587.67,587.02,2.951]
[1744569638298,0.29642627,587.66,587.02,2.951]
[1744569638499,0.30703882,587.65,587.02,2.951]
[1744569640396,0.60346762,587.64,587.02,2.951]
[1744569640601,0.30703882,587.63,587.02,2.951]
[1744569641596,0.30703834,587.62,587.02,2.951]
[1744569641801,0.30703834,587.61,587.02,2.951]
[1744569642001,0.30703834,587.63,587.02,2.951]
[1744569642201,0.30703834,587.62,587.02,2.951]
[1744569642404,0.30703834,587.63,587.02,2.951]
[1744569646203,0.30703834,587.67,587.02,2.951]
[1744569647205,0.29643637,587.66,587.02,2.951]
[1744569647504,0.30703834,587.65,587.02,2.951]
[1744569650308,0.34034442,587.64,587.02,2.951]
[1744569650512,0.30703834,587.63,587.02,2.951]
[1744569650710,0.34035601,587.62,587.02,2.951]
[1744569650914,0.30703834,587.61,587.02,2.951]
[1744569651214,0.34036759,587.6,587.02,2.951]
[1744569651413,0.30703834,587.59,587.02,2.951]
[1744569654114,0.63680902,587.6,587.02,2.951]
[1744569654315,0.30704967,587.59,587.02,2.951]
[1744569660316,0.63680902,587.6,587.02,2.951]
[1744569660514,0.3070606,587.58,587.02,2.951]
[1744569660715,0.63680902,587.6,587.02,2.951]
[1744569660919,0.30705527,587.59,587.02,2.951]
[1744569661419,0.34036759,587.6,587.02,2.951]
[1744569661620,0.30705372,587.59,587.02,2.951]
[1744569664623,0.34036759,587.6,587.02,2.951]
[1744569664819,0.30704875,587.59,587.02,2.951]
[1744569669328,0.63680902,587.6,587.02,2.951]
[1744569669530,0.30704344,587.59,587.02,2.951]
[1744569677129,0.63680902,587.6,587.02,2.951]
[1744569677429,0.30705603,587.59,587.02,2.951]
[1744569678729,0.63680902,587.6,587.02,2.951]
[1744569678924,0.30706184,587.59,587.02,2.951]
[1744569679930,0.239,587.58,587.02,2.951]
[1744569680131,0.30706184,587.57,587.02,2.951]
[1744569680329,0.239,587.58,587.02,2.951]
[1744569680527,0.30705633,587.57,587.02,2.951]
[1744569681432,0.239,587.58,587.02,2.951]
[1744569687841,0.30700592,587.57,587.02,2.951]
[1744569688236,0.239,587.58,587.02,2.951]
[1744569688440,0.30698156,587.57,587.02,2.951]
[1744569689145,0.239,587.58,587.02,2.951]
[1744569689338,0.29645784,587.56,587.02,2.951]
[1744569690943,0.239,587.58,587.02,2.951]
[1744569691143,0.30694448,587.57,587.02,2.951]
[1744569692244,0.29645405,587.56,587.02,2.951]
[1744569692849,0.30696572,587.55,587.02,2.951]
[1744569694254,0.30696572,587.54,587.02,2.951]
[1744569694446,0.30696572,587.57,587.02,2.951]
[1744569695345,0.29645405,587.56,587.02,2.951]
[1744569695546,0.30696572,587.55,587.02,2.951]
[1744569695750,0.29645405,587.56,587.02,2.951]
[1744569696846,0.239,587.58,587.02,2.951]
[1744569703751,0.30699603,587.57,587.02,2.951]
[1744569704252,0.30699603,587.56,587.02,2.951]
[1744569704449,0.30699603,587.59,587.02,2.951]
[1744569704652,0.30699603,587.58,587.02,2.951]
[1744569704848,0.30699603,587.57,587.02,2.951]
[1744569705052,0.30699603,587.59,587.02,2.951]
[1744569705253,0.30699603,587.58,587.02,2.951]
[1744569705451,0.30699603,587.59,587.02,2.951]
[1744569705648,0.30699603,587.58,587.02,2.951]
[1744569705852,0.30699603,587.59,587.02,2.951]
[1744569706053,0.30699603,587.58,587.02,2.951]
[1744569706257,0.30699603,587.57,587.02,2.951]
[1744569706455,0.30699603,587.59,587.02,2.951]
[1744569706755,0.30699603,587.58,587.02,2.951]
[1744569706954,0.30699603,587.59,587.02,2.951]
[1744569707151,0.34036759,587.6,587.02,2.951]
[1744569707455,0.53546415,587.58,587.02,2.951]
[1744569707655,0.30697719,587.57,587.02,2.951]
[1744569708757,0.53546415,587.58,587.02,2.951]
[1744569708958,0.30704947,587.57,587.02,2.951]
[1744569710257,0.29646921,587.56,587.02,2.951]
[1744569710457,0.30704947,587.55,587.02,2.951]
[1744569712258,0.30704947,587.57,587.02,2.951]
[1744569713563,0.29646921,587.56,587.02,2.951]
[1744569713859,0.30704947,587.55,587.02,2.951]
[1744569716559,0.29646921,587.56,587.02,2.951]
[1744569716765,0.3071631,587.55,587.02,2.951]
[1744569718161,0.239,587.58,587.02,2.951]
[1744569718456,0.29646921,587.54,587.02,2.951]
[1744569718756,0.30716356,587.53,587.02,2.951]
[1744569724267,0.30716356,587.57,587.02,2.951]
[1744569724466,0.29648941,587.52,587.02,2.951]
[1744569724665,0.30716356,587.51,587.02,2.951]
[1744569725462,0.34042553,587.5,587.02,2.951]
[1744569725668,0.30716356,587.49,587.02,2.951]
[1744569726062,0.64759488,587.49,587.02,2.951]
[1744569726262,0.30716356,587.48,587.02,2.951]
[1744569726462,0.64760068,587.48,587.02,2.951]
[1744569726667,0.30716356,587.47,587.02,2.951]
[1744569727268,0.34044871,587.46,587.02,2.951]
[1744569727467,0.30716356,587.45,587.02,2.951]
[1744569728269,0.29651973,587.44,587.02,2.951]
[1744569728469,0.30716356,587.43,587.02,2.951]
[1744569728668,0.30716356,587.43,586.15,0.29651973]
[1744569728869,0.30716356,587.43,586.16,0.65438892]
[1744569729069,0.30716356,587.43,586.17,0.6543831]
[1744569729266,0.30716356,587.43,586.18,0.65437728]
[1744569729468,0.30716356,587.43,586.19,0.65437146]
[1744569729671,0.30716356,587.43,586.2,0.31318516]
[1744569729873,0.29651973,587.44,586.2,0.31318516]
[1744569730073,0.239,587.42,586.2,0.31318516]
[1744569730874,0.239,587.42,586.21,0.535]
[1744569731171,0.239,587.42,586.22,0.654354]
[1744569731374,0.30713628,587.41,586.23,0.31318516]
[1744569731570,0.239,587.42,586.23,0.31318516]
[1744569731775,0.239,587.42,586.24,0.41]
[1744569731976,0.239,587.42,586.25,0.65433654]
[1744569732175,0.239,587.42,586.26,0.31318516]
[1744569732478,0.239,587.42,586.27,0.34113974]
[1744569732774,0.239,587.42,586.28,0.31318516]
[1744569732971,0.239,587.42,586.29,0.34112811]
[1744569733171,0.239,587.42,586.3,0.31318516]
[1744569733377,0.3071602,587.41,586.3,0.65430745]
[1744569733674,0.3071602,587.41,586.31,0.31318516]
[1744569734271,0.29661324,587.4,586.31,0.31318516]
[1744569734477,0.3071602,587.39,586.31,0.31318516]
[1744569735276,0.29661324,587.4,586.3,0.34112229]
[1744569735578,0.30715098,587.39,586.31,0.31315807]
[1744569736178,0.30715098,587.41,586.31,0.31315807]
[1744569737280,0.29661324,587.4,586.31,0.31315807]
[1744569737480,0.30715098,587.39,586.31,0.31315807]
[1744569738481,0.29661324,587.4,586.3,0.34112229]
[1744569738678,0.30713606,587.39,586.31,0.31315826]
[1744569739275,0.30713606,587.41,586.31,0.31315826]
[1744569740379,0.29661324,587.4,586.31,0.31315826]
[1744569740583,0.30713606,587.39,586.31,0.31315826]
[1744569742183,0.239,587.42,586.31,0.31315826]
[1744569742184,0.30713606,587.41,586.31,0.31315826]
[1744569742380,0.30713606,587.4,586.31,0.31315826]
[1744569742584,0.30713606,587.41,586.31,0.31315826]
[1744569742889,0.30713606,587.4,586.31,0.31315826]
[1744569743085,0.30713606,587.39,586.31,0.31315826]
[1744569743279,0.29661324,587.4,586.31,0.31315826]
[1744569743583,0.30713606,587.39,586.31,0.31315826]
[1744569744784,0.29661324,587.4,586.3,0.34112229]
[1744569744986,0.30712829,587.39,586.31,0.31317723]
[1744569745386,0.29662082,587.38,586.31,0.31317723]
[1744569745586,0.30712829,587.37,586.31,0.31317723]
[1744569746586,0.30712829,587.37,586.31,0.80317723]
[1744569746787,0.30712829,587.37,586.32,0.31317723]
[1744569747988,0.29662082,587.38,586.31,0.49]
[1744569748188,0.30715666,587.37,586.33,0.468]
[1744569748388,0.29661324,587.37,586.34,0.3131742]
[1744569748589,0.30715666,587.36,586.34,0.3131742]
[1744569749888,0.34044871,587.46,586.34,0.3131742]
[1744569750191,0.30730075,587.45,586.34,0.3131742]
[1744569750588,0.30730075,587.45,586.34,0.65427322]
[1744569750788,0.30730075,587.45,586.35,0.3131742]
[1744569751590,0.54630075,587.45,586.35,0.3131742]
[1744569751787,0.30730075,587.44,586.35,0.3131742]
[1744569752084,0.30730075,587.44,586.36,0.432]
[1744569752284,0.30730075,587.44,586.37,0.3131742]
[1744569754486,0.30739668,587.43,586.38,0.31313808]
[1744569754685,0.30739668,587.44,586.37,0.31313808]
[1744569755891,0.239,587.45,586.37,0.31313808]
[1744569756187,0.30741998,587.44,586.38,0.31313777]
[1744569756390,0.30741998,587.44,586.39,0.31313777]
[1744569756586,0.30741998,587.44,586.37,0.31313777]
[1744569756788,0.30741998,587.44,586.38,0.31313777]
[1744569756988,0.30741998,587.44,586.37,0.31313777]
[1744569757492,0.239,587.45,586.36,0.432]
[1744569757686,0.30744245,587.44,586.37,0.3131486]
[1744569759090,0.239,587.45,586.37,0.3131486]
[1744569759590,0.239,587.45,586.36,0.432]
[1744569759993,0.239,587.45,586.37,0.31311784]
[1744569762394,0.30749276,587.44,586.37,0.6541994]
[1744569762588,0.30749276,587.44,586.38,0.31311784]
[1744569762787,0.30749276,587.44,586.38,0.78511784]
[1744569762993,0.30749276,587.44,586.39,0.31311784]
[1744569764092,0.30749276,587.44,586.4,0.581]
[1744569764291,0.30749276,587.44,586.41,0.31311784]
[1744569767093,0.239,587.45,586.4,0.581]
[1744569767298,0.3073846,587.44,586.41,0.31311235]
[1744569768801,0.3073846,587.45,586.41,0.31311235]
[1744569768999,0.3073846,587.44,586.41,0.31311235]
[1744569769298,0.3073846,587.43,586.41,0.31311235]
[1744569769498,0.3073846,587.45,586.41,0.31311235]
[1744569771301,0.5463846,587.45,586.41,0.31311235]
[1744569771502,0.3073846,587.44,586.41,0.73511235]
[1744569771803,0.3073846,587.44,586.42,0.31311235]
[1744569773497,0.239,587.45,586.42,0.31311235]
[1744569776405,0.239,587.45,586.42,0.74711235]
[1744569776605,0.239,587.45,586.43,0.31311235]
[1744569781016,0.30731013,587.44,586.43,0.31311235]
[1744569781315,0.239,587.45,586.43,0.65415902]
[1744569781615,0.239,587.45,586.44,0.6541532]
[1744569781811,0.239,587.45,586.45,0.31311235]
[1744569782216,0.239,587.45,586.46,0.34102922]
[1744569782417,0.239,587.45,586.47,0.31311235]
[1744569783012,0.239,587.45,586.48,0.411]
[1744569783219,0.239,587.45,586.49,0.31311235]
[1744569783615,0.239,587.45,586.48,0.411]
[1744569783818,0.239,587.45,586.49,0.31307398]
[1744569784222,0.239,587.45,586.5,0.31307371]
[1744569784417,0.239,587.45,586.49,0.31307371]
[1744569784623,0.239,587.45,586.5,0.31307371]
[1744569784917,0.239,587.45,586.51,0.31307371]
[1744569785121,0.239,587.45,586.49,0.31307371]
[1744569785321,0.239,587.45,586.5,0.31307371]
[1744569785621,0.239,587.45,586.51,0.31307371]
[1744569785824,0.239,587.45,586.49,0.31307371]
[1744569786122,0.30729216,587.44,586.49,0.31307371]
[1744569786322,0.30729216,587.44,586.5,0.416]
[1744569786520,0.30729216,587.44,586.51,0.31307371]
[1744569787326,0.239,587.45,586.51,0.31307371]
[1744569787718,0.3072376,587.44,586.51,0.31307371]
[1744569789021,0.239,587.45,586.5,0.416]
[1744569789221,0.239,587.45,586.51,0.31306732]
[1744569790727,0.239,587.45,586.52,0.3130718]
[1744569790923,0.239,587.45,586.51,0.3130718]
[1744569791128,0.239,587.45,586.52,0.3130718]
[1744569791328,0.239,587.45,586.53,0.3130718]
[1744569791623,0.239,587.45,586.52,0.545]
[1744569791825,0.239,587.45,586.53,0.3130718]
[1744569795632,0.239,587.45,586.54,0.31308772]
[1744569795829,0.239,587.45,586.52,0.545]
[1744569795830,0.239,587.45,586.53,0.31308772]
[1744569796129,0.239,587.45,586.54,0.31308772]
[1744569796330,0.239,587.45,586.53,0.31308772]
[1744569796931,0.239,587.45,586.53,0.77008772]
[1744569797426,0.239,587.45,586.54,0.31308772]
[1744569798628,0.239,587.45,586.53,0.457]
[1744569798831,0.239,587.45,586.54,0.31308342]
[1744569799833,0.30720974,587.44,586.54,0.31308342]
[1744569800332,0.30720974,587.45,586.54,0.90508342]
[1744569800532,0.30720974,587.44,586.55,0.31308342]
[1744569800732,0.30720974,587.43,586.55,0.31308342]
[1744569800933,0.30720974,587.45,586.55,0.31308342]
[1744569801129,0.34044871,587.46,586.55,0.31308342]
[1744569801335,0.30715505,587.45,586.55,0.31308342]
[1744569801834,0.34044871,587.46,586.54,0.592]
[1744569802034,0.3071502,587.45,586.55,0.3130879]
[1744569802833,0.5461502,587.45,586.55,0.3130879]
[1744569803036,0.3071502,587.44,586.55,0.3130879]
[1744569805138,0.239,587.45,586.54,0.592]
[1744569805437,0.30712259,587.44,586.55,0.31308817]
[1744569806737,0.239,587.45,586.54,0.592]
[1744569806937,0.30710692,587.44,586.55,0.31308794]
[1744569808533,0.239,587.45,586.55,0.31308794]
[1744569810033,0.239,587.45,586.54,0.592]
[1744569810237,0.239,587.45,586.55,0.31307795]
[1744569813738,0.239,587.45,586.55,0.75307795]
[1744569813940,0.239,587.45,586.56,0.31307795]
[1744569818040,0.239,587.45,586.55,0.44]
[1744569818240,0.239,587.45,586.56,0.31303161]
[1744569819739,0.239,587.45,586.57,0.31303073]
[1744569819936,0.239,587.45,586.56,0.31303073]
[1744569820140,0.239,587.45,586.57,0.31303073]
[1744569820341,0.239,587.45,586.56,0.31303073]
[1744569820640,0.239,587.45,586.57,0.31303073]
[1744569820838,0.239,587.45,586.56,0.31303073]
[1744569821036,0.239,587.45,586.57,0.31303073]
[1744569821237,0.239,587.45,586.56,0.31303073]
[1744569821541,0.239,587.45,586.57,0.31303073]
[1744569821838,0.239,587.45,586.58,0.71703073]
[1744569822042,0.239,587.45,586.59,0.31303073]
[1744569822843,0.239,587.45,586.58,0.404]
[1744569823038,0.239,587.45,586.59,0.31303439]
[1744569826048,0.239,587.45,586.58,0.404]
[1744569826245,0.239,587.45,586.59,0.31304341]
[1744569827748,0.239,587.45,586.6,0.31304309]
[1744569827944,0.239,587.45,586.59,0.31304309]
[1744569828250,0.239,587.45,586.6,0.31304309]
[1744569828448,0.239,587.45,586.59,0.31304309]
[1744569828747,0.239,587.45,586.6,0.31304309]
[1744569828948,0.239,587.45,586.59,0.31304309]
[1744569829346,0.239,587.45,586.6,0.31304273]
[1744569829548,0.239,587.45,586.59,0.31304273]
[1744569829749,0.239,587.45,586.6,0.31304273]
[1744569829946,0.239,587.45,586.59,0.31304273]
[1744569830345,0.239,587.45,586.6,0.561]
[1744569830551,0.239,587.45,586.61,0.31304273]
[1744569830850,0.239,587.45,586.6,0.561]
[1744569831052,0.239,587.45,586.62,0.31304324]
[1744569831251,0.239,587.45,586.61,0.31304324]
[1744569831448,0.239,587.45,586.62,0.31304324]
[1744569831754,0.239,587.45,586.62,0.49]
[1744569832250,0.239,587.45,586.63,0.31304283]
[1744569835747,0.239,587.45,586.62,0.49]
[1744569835948,0.239,587.45,586.63,0.31304296]
[1744569837253,0.239,587.45,586.62,0.49]
[1744569837448,0.239,587.45,586.63,0.31304363]
[1744569838756,0.239,587.45,586.62,0.49]
[1744569838951,0.239,587.45,586.64,0.508]
[1744569839155,0.239,587.45,586.65,0.31304328]
[1744569841659,0.239,587.45,586.64,0.508]
[1744569841960,0.239,587.45,586.65,0.68904339]
[1744569842153,0.239,587.45,586.66,0.31304339]
[1744569842959,0.239,587.45,586.65,0.376]
[1744569843160,0.239,587.45,586.66,0.31303858]
[1744569843459,0.239,587.45,586.67,0.31303439]